[Event "Titled Tuesday Blitz April 05 Late 2022"]
[White "Murzin, Volodar"]
[Black "Iskusnyh, Sergei"]
[WhiteFideId "44155573"]
[BlackFideId "4120027"]
[WhiteElo "2585"]
[BlackElo "2492"]
[Result "0-1"]
[Round "02"]
[TimeControl "180+1"]
[Date "2022.04.05"]
[WhiteClock "0:00:06"]
[BlackClock "0:00:16"]

1. e4 {[%clk 0:02:58]}  e6 {[%clk 0:02:58]} 2. d3 {[%clk 0:02:58]}  c5 {[%clk 0:02:57]} 3. Nd2 {[%clk 0:02:59]}  Nc6 {[%clk 0:02:57]} 4. Ngf3 {[%clk 0:03:00]}  g6 {[%clk 0:02:56]} 5. g3 {[%clk 0:03:00]}  Bg7 {[%clk 0:02:57]} 6. Bg2 {[%clk 0:03:01]}  d6 {[%clk 0:02:57]} 7. O-O {[%clk 0:03:02]}  Nge7 {[%clk 0:02:56]} 8. c3 {[%clk 0:03:03]}  O-O {[%clk 0:02:51]} 9. a4 {[%clk 0:03:02]}  b6 {[%clk 0:02:47]} 10. Nc4 {[%clk 0:03:02]}  Ba6 {[%clk 0:02:47]} 11. Re1 {[%clk 0:03:02]}  Rc8 {[%clk 0:02:46]} 12. h4 {[%clk 0:02:59]}  d5 {[%clk 0:02:42]} 13. exd5 {[%clk 0:02:58]}  exd5 {[%clk 0:02:40]} 14. Nce5 {[%clk 0:02:58]}  Nxe5 {[%clk 0:02:40]} 15. Nxe5 {[%clk 0:02:59]}  Nc6 {[%clk 0:02:12]} 16. Bf4 {[%clk 0:02:49]}  Nxe5 {[%clk 0:02:06]} 17. Bxe5 {[%clk 0:02:49]}  Re8 {[%clk 0:01:48]} 18. Bxg7 {[%clk 0:02:46]}  Rxe1+ {[%clk 0:01:48]} 19. Qxe1 {[%clk 0:02:46]}  Kxg7 {[%clk 0:01:48]} 20. Rd1 {[%clk 0:01:39]}  d4 {[%clk 0:01:17]} 21. c4 {[%clk 0:01:38]}  Qf6 {[%clk 0:01:11]} 22. b4 {[%clk 0:01:29]}  Rc7 {[%clk 0:01:08]} 23. a5 {[%clk 0:01:12]}  Re7 {[%clk 0:01:04]} 24. Qd2 {[%clk 0:01:11]}  Bc8 {[%clk 0:01:01]} 25. bxc5 {[%clk 0:00:59]}  bxc5 {[%clk 0:01:01]} 26. Rb1 {[%clk 0:01:00]}  h5 {[%clk 0:00:58]} 27. Rb5 {[%clk 0:00:58]}  Qd6 {[%clk 0:00:56]} 28. Be4 {[%clk 0:00:44]}  Ba6 {[%clk 0:00:51]} 29. Rb2 {[%clk 0:00:33]}  Bxc4 {[%clk 0:00:50]} 30. Bxg6 {[%clk 0:00:31]}  fxg6 {[%clk 0:00:50]} 31. dxc4 {[%clk 0:00:31]}  Qe6 {[%clk 0:00:42]} 32. Qg5 {[%clk 0:00:25]}  Qe5 {[%clk 0:00:38]} 33. a6 {[%clk 0:00:07]}  d3 {[%clk 0:00:26]} 34. Rb7 {[%clk 0:00:04]}  Qxg5 {[%clk 0:00:20]} 35. hxg5 {[%clk 0:00:04]}  Kf8 {[%clk 0:00:20]} 36. Rxe7 {[%clk 0:00:03]}  Kxe7 {[%clk 0:00:19]} 37. Kf1 {[%clk 0:00:04]}  Ke6 {[%clk 0:00:20]} 38. Ke1 {[%clk 0:00:04]}  Kf5 {[%clk 0:00:21]} 39. Kd2 {[%clk 0:00:04]}  Ke4 {[%clk 0:00:20]} 40. f4 {[%clk 0:00:02]}  h4 {[%clk 0:00:15]} 41. gxh4 {[%clk 0:00:02]}  Kxf4 {[%clk 0:00:15]} 42. h5 {[%clk 0:00:02]}  Kxg5 {[%clk 0:00:15]} 43. hxg6 {[%clk 0:00:02]}  Kxg6 {[%clk 0:00:15]} 44. Kxd3 {[%clk 0:00:03]}  Kf5 {[%clk 0:00:15]} 45. Ke3 {[%clk 0:00:03]}  Ke5 {[%clk 0:00:16]} 46. Kd3 {[%clk 0:00:03]}  Kf4 {[%clk 0:00:16]} 47. Kc3 {[%clk 0:00:04]}  Ke4 {[%clk 0:00:16]} 48. Kb3 {[%clk 0:00:04]}  Kd4 {[%clk 0:00:16]} 49. Ka4 {[%clk 0:00:03]}  Kxc4 {[%clk 0:00:16]} 50. Ka5 {[%clk 0:00:04]}  Kd5 {[%clk 0:00:16]} 51. Kb5 {[%clk 0:00:05]}  c4 {[%clk 0:00:16]} 52. Kb4 {[%clk 0:00:06]}  Kd4 {[%clk 0:00:16]} 0-1


[Site "https://www.chess.com"]

[Event "Titled Tuesday Blitz April 05 Late 2022"]
[White "Naroditsky, Daniel"]
[Black "Rorrer, Grayson"]
[WhiteFideId "2026961"]
[BlackFideId "30944996"]
[WhiteElo "2608"]
[BlackElo "2122"]
[Result "1-0"]
[Round "02"]
[TimeControl "180+1"]
[Date "2022.04.05"]
[WhiteClock "0:00:06"]
[BlackClock "0:00:02"]

1. d4 {[%clk 0:02:59]}  Nf6 {[%clk 0:02:59]} 2. Bf4 {[%clk 0:02:59]}  e6 {[%clk 0:02:59]} 3. e3 {[%clk 0:02:58]}  c5 {[%clk 0:03:00]} 4. Nf3 {[%clk 0:02:56]}  cxd4 {[%clk 0:03:00]} 5. exd4 {[%clk 0:02:55]}  d6 {[%clk 0:03:00]} 6. c3 {[%clk 0:02:49]}  Be7 {[%clk 0:03:01]} 7. Bd3 {[%clk 0:02:50]}  O-O {[%clk 0:03:01]} 8. O-O {[%clk 0:02:50]}  Nbd7 {[%clk 0:03:02]} 9. Re1 {[%clk 0:02:50]}  Re8 {[%clk 0:03:01]} 10. Na3 {[%clk 0:02:48]}  b6 {[%clk 0:02:55]} 11. Nc4 {[%clk 0:02:41]}  Qc7 {[%clk 0:02:55]} 12. a4 {[%clk 0:02:37]}  Bb7 {[%clk 0:02:49]} 13. h3 {[%clk 0:02:36]}  a6 {[%clk 0:02:46]} 14. Bh2 {[%clk 0:02:27]}  Bc6 {[%clk 0:02:33]} 15. Ncd2 {[%clk 0:02:10]}  Qb7 {[%clk 0:02:28]} 16. c4 {[%clk 0:02:00]}  b5 {[%clk 0:02:09]} 17. b3 {[%clk 0:01:58]}  Bf8 {[%clk 0:02:06]} 18. Qc2 {[%clk 0:01:51]}  h6 {[%clk 0:01:28]} 19. d5 {[%clk 0:01:48]}  exd5 {[%clk 0:01:23]} 20. cxb5 {[%clk 0:01:49]}  axb5 {[%clk 0:01:20]} 21. Nd4 {[%clk 0:01:49]}  Nc5 {[%clk 0:00:48]} 22. Bxb5 {[%clk 0:01:38]}  Bxb5 {[%clk 0:00:45]} 23. Nxb5 {[%clk 0:01:39]}  Nfe4 {[%clk 0:00:41]} 24. Nxe4 {[%clk 0:01:26]}  Nxe4 {[%clk 0:00:34]} 25. Qc7 {[%clk 0:01:23]}  Nc5 {[%clk 0:00:20]} 26. Rxe8 {[%clk 0:01:17]}  Rxe8 {[%clk 0:00:18]} 27. Qxb7 {[%clk 0:01:12]}  Nxb7 {[%clk 0:00:19]} 28. Bf4 {[%clk 0:00:58]}  Nc5 {[%clk 0:00:18]} 29. b4 {[%clk 0:00:43]}  Nd3 {[%clk 0:00:17]} 30. Bd2 {[%clk 0:00:39]}  Re2 {[%clk 0:00:16]} 31. a5 {[%clk 0:00:35]}  Rxd2 {[%clk 0:00:16]} 32. a6 {[%clk 0:00:35]}  Rc2 {[%clk 0:00:06]} 33. a7 {[%clk 0:00:34]}  Rc8 {[%clk 0:00:06]} 34. a8=Q {[%clk 0:00:21]}  Rxa8 {[%clk 0:00:06]} 35. Rxa8 {[%clk 0:00:22]}  Nxb4 {[%clk 0:00:07]} 36. Nxd6 {[%clk 0:00:21]}  g6 {[%clk 0:00:07]} 37. Ne8 {[%clk 0:00:21]}  d4 {[%clk 0:00:04]} 38. Rd8 {[%clk 0:00:19]}  d3 {[%clk 0:00:04]} 39. Nf6+ {[%clk 0:00:16]}  Kg7 {[%clk 0:00:04]} 40. Ne4 {[%clk 0:00:17]}  Be7 {[%clk 0:00:04]} 41. Rd7 {[%clk 0:00:17]}  Kf8 {[%clk 0:00:04]} 42. Kf1 {[%clk 0:00:13]}  f5 {[%clk 0:00:05]} 43. Nd2 {[%clk 0:00:11]}  Ke8 {[%clk 0:00:05]} 44. Rb7 {[%clk 0:00:09]}  Nd5 {[%clk 0:00:02]} 45. Rb3 {[%clk 0:00:08]}  Nb4 {[%clk 0:00:01]} 46. Rc3 {[%clk 0:00:08]}  Kf7 {[%clk 0:00:01]} 47. Rc4 {[%clk 0:00:07]}  Ke6 {[%clk 0:00:01]} 48. Ke1 {[%clk 0:00:04]}  Kd5 {[%clk 0:00:01]} 49. Kd1 {[%clk 0:00:05]}  Nc6 {[%clk 0:00:01]} 50. Rc3 {[%clk 0:00:04]}  Ne5 {[%clk 0:00:01]} 51. f4 {[%clk 0:00:04]}  Kd4 {[%clk 0:00:01]} 52. Rc7 {[%clk 0:00:05]}  Bd6 {[%clk 0:00:02]} 53. Rg7 {[%clk 0:00:03]}  Nc6 {[%clk 0:00:02]} 54. Rxg6 {[%clk 0:00:03]}  Kd5 {[%clk 0:00:01]} 55. Rg3 {[%clk 0:00:04]}  Nb4 {[%clk 0:00:01]} 56. Rf3 {[%clk 0:00:04]}  Kd4 {[%clk 0:00:01]} 57. g4 {[%clk 0:00:05]}  Nd5 {[%clk 0:00:01]} 58. Nb3+ {[%clk 0:00:03]}  Ke4 {[%clk 0:00:01]} 59. Nd2+ {[%clk 0:00:04]}  Kd4 {[%clk 0:00:01]} 60. g5 {[%clk 0:00:04]}  Bxf4 {[%clk 0:00:01]} 61. g6 {[%clk 0:00:05]}  Nc3+ {[%clk 0:00:01]} 62. Ke1 {[%clk 0:00:05]}  Be5 {[%clk 0:00:01]} 63. Rxf5 {[%clk 0:00:05]}  Ne4 {[%clk 0:00:01]} 64. Nxe4 {[%clk 0:00:05]}  Kxe4 {[%clk 0:00:02]} 65. Rxe5+ {[%clk 0:00:05]}  Kxe5 {[%clk 0:00:02]} 66. g7 {[%clk 0:00:06]} 1-0


[Site "https://www.chess.com"]

[Event "Titled Tuesday Blitz April 05 Late 2022"]
[White "Ozdemir, Serhan Berat"]
[Black "Tristan, Leonardo"]
[WhiteFideId "6374611"]
[BlackFideId "113816"]
[WhiteElo "2428"]
[BlackElo "2788"]
[Result "0-1"]
[Round "02"]
[TimeControl "180+1"]
[Date "2022.04.06"]
[WhiteClock "0:00:33"]
[BlackClock "0:01:13"]

1. e4 {[%clk 0:02:59]}  d5 {[%clk 0:03:00]} 2. exd5 {[%clk 0:02:59]}  Qxd5 {[%clk 0:03:01]} 3. Nc3 {[%clk 0:03:00]}  Qa5 {[%clk 0:03:01]} 4. d4 {[%clk 0:02:54]}  Nf6 {[%clk 0:03:02]} 5. Nf3 {[%clk 0:02:54]}  Bf5 {[%clk 0:03:02]} 6. Bc4 {[%clk 0:02:40]}  e6 {[%clk 0:03:02]} 7. O-O {[%clk 0:02:39]}  Bb4 {[%clk 0:03:00]} 8. Bd2 {[%clk 0:02:35]}  Nc6 {[%clk 0:03:00]} 9. a3 {[%clk 0:02:33]}  Bxc3 {[%clk 0:03:00]} 10. Bxc3 {[%clk 0:02:34]}  Qb6 {[%clk 0:03:01]} 11. a4 {[%clk 0:02:28]}  a5 {[%clk 0:03:00]} 12. Bb5 {[%clk 0:02:25]}  O-O {[%clk 0:02:59]} 13. Ne5 {[%clk 0:02:20]}  Nxe5 {[%clk 0:02:53]} 14. dxe5 {[%clk 0:02:20]}  Rad8 {[%clk 0:02:53]} 15. exf6 {[%clk 0:01:55]}  Rxd1 {[%clk 0:02:52]} 16. Raxd1 {[%clk 0:01:56]}  gxf6 {[%clk 0:02:34]} 17. Bxf6 {[%clk 0:01:57]}  c6 {[%clk 0:02:35]} 18. Bd3 {[%clk 0:01:57]}  Bg6 {[%clk 0:02:31]} 19. Rfe1 {[%clk 0:01:51]}  Qb4 {[%clk 0:02:29]} 20. Bc3 {[%clk 0:01:43]}  Qxa4 {[%clk 0:02:23]} 21. Bxg6 {[%clk 0:01:38]}  hxg6 {[%clk 0:02:14]} 22. Rd7 {[%clk 0:01:37]}  b5 {[%clk 0:02:03]} 23. b3 {[%clk 0:01:18]}  Qg4 {[%clk 0:01:36]} 24. h3 {[%clk 0:01:11]}  Qf5 {[%clk 0:01:34]} 25. Bxa5 {[%clk 0:00:59]}  Qxc2 {[%clk 0:01:33]} 26. b4 {[%clk 0:00:54]}  c5 {[%clk 0:01:22]} 27. bxc5 {[%clk 0:00:48]}  Qxc5 {[%clk 0:01:23]} 28. Rc7 {[%clk 0:00:43]}  Qd6 {[%clk 0:01:15]} 29. Rb7 {[%clk 0:00:33]}  Qa6 {[%clk 0:01:13]} 0-1


[Site "https://www.chess.com"]

[Event "Titled Tuesday Blitz April 05 Late 2022"]
[White "P., Komal Kishore"]
[Black "Martin Barcelo, Carles"]
[WhiteFideId "5016703"]
[BlackFideId "24561444"]
[WhiteElo "2080"]
[BlackElo "1875"]
[Result "0-1"]
[Round "02"]
[TimeControl "180+1"]
[Date "2022.04.06"]
[WhiteClock "0:00:33"]
[BlackClock "0:01:34"]

1. e4 {[%clk 0:03:00]}  e6 {[%clk 0:02:58]} 2. d4 {[%clk 0:03:00]}  d5 {[%clk 0:02:58]} 3. Nd2 {[%clk 0:03:00]}  c5 {[%clk 0:02:57]} 4. exd5 {[%clk 0:03:00]}  Qxd5 {[%clk 0:02:58]} 5. Ngf3 {[%clk 0:02:59]}  cxd4 {[%clk 0:02:59]} 6. Bc4 {[%clk 0:02:59]}  Qd6 {[%clk 0:02:59]} 7. O-O {[%clk 0:02:58]}  Nf6 {[%clk 0:02:59]} 8. Re1 {[%clk 0:02:58]}  Nc6 {[%clk 0:02:57]} 9. Nb3 {[%clk 0:02:57]}  Be7 {[%clk 0:02:52]} 10. Nbxd4 {[%clk 0:02:55]}  Nxd4 {[%clk 0:02:52]} 11. Qxd4 {[%clk 0:02:54]}  Qxd4 {[%clk 0:02:51]} 12. Nxd4 {[%clk 0:02:54]}  Bd7 {[%clk 0:02:50]} 13. Nb5 {[%clk 0:02:50]}  Rc8 {[%clk 0:02:47]} 14. Bd3 {[%clk 0:02:37]}  a6 {[%clk 0:02:47]} 15. Nc3 {[%clk 0:02:35]}  O-O {[%clk 0:02:44]} 16. Bg5 {[%clk 0:02:27]}  b5 {[%clk 0:02:40]} 17. Rad1 {[%clk 0:02:21]}  Rfd8 {[%clk 0:02:38]} 18. Ne2 {[%clk 0:02:09]}  Bc6 {[%clk 0:02:34]} 19. c3 {[%clk 0:02:05]}  Bc5 {[%clk 0:02:24]} 20. Bh4 {[%clk 0:01:48]}  h6 {[%clk 0:02:12]} 21. Ng3 {[%clk 0:01:44]}  g5 {[%clk 0:02:09]} 22. Ne4 {[%clk 0:01:28]}  Bxe4 {[%clk 0:02:07]} 23. Bxe4 {[%clk 0:01:26]}  Nxe4 {[%clk 0:02:05]} 24. Bg3 {[%clk 0:01:12]}  Nxg3 {[%clk 0:02:04]} 25. hxg3 {[%clk 0:01:11]}  Kf8 {[%clk 0:02:04]} 26. Kf1 {[%clk 0:01:08]}  Ke7 {[%clk 0:02:04]} 27. Ke2 {[%clk 0:01:06]}  Rxd1 {[%clk 0:02:04]} 28. Rxd1 {[%clk 0:01:05]}  Rd8 {[%clk 0:02:05]} 29. Rh1 {[%clk 0:01:05]}  Rh8 {[%clk 0:02:01]} 30. g4 {[%clk 0:01:05]}  Kf6 {[%clk 0:02:00]} 31. b3 {[%clk 0:01:00]}  Bb6 {[%clk 0:01:55]} 32. Kd3 {[%clk 0:01:00]}  Rd8+ {[%clk 0:01:53]} 33. Ke2 {[%clk 0:00:59]}  Kg7 {[%clk 0:01:52]} 34. Rc1 {[%clk 0:00:55]}  f5 {[%clk 0:01:48]} 35. f3 {[%clk 0:00:52]}  fxg4 {[%clk 0:01:47]} 36. fxg4 {[%clk 0:00:51]}  Rf8 {[%clk 0:01:48]} 37. c4 {[%clk 0:00:48]}  bxc4 {[%clk 0:01:48]} 38. bxc4 {[%clk 0:00:45]}  Rf2+ {[%clk 0:01:47]} 39. Kd3 {[%clk 0:00:43]}  Rxg2 {[%clk 0:01:46]} 40. c5 {[%clk 0:00:43]}  Bc7 {[%clk 0:01:47]} 41. Rb1 {[%clk 0:00:40]}  Kf6 {[%clk 0:01:36]} 42. Rb7 {[%clk 0:00:37]}  Bf4 {[%clk 0:01:37]} 43. c6 {[%clk 0:00:33]}  Rg1 {[%clk 0:01:34]} 0-1


[Site "https://www.chess.com"]

[Event "Titled Tuesday Blitz April 05 Late 2022"]
[White "Papasimakopoulos, Alexandros"]
[Black "Girsh, Daniel"]
[WhiteFideId "4244125"]
[BlackFideId "30949190"]
[WhiteElo "2721"]
[BlackElo "2309"]
[Result "1-0"]
[Round "02"]
[TimeControl "180+1"]
[Date "2022.04.06"]
[WhiteClock "0:00:44"]
[BlackClock "0:00:15"]

1. d4 {[%clk 0:03:00]}  Nf6 {[%clk 0:02:57]} 2. c4 {[%clk 0:03:01]}  e6 {[%clk 0:02:51]} 3. Nc3 {[%clk 0:03:01]}  Bb4 {[%clk 0:02:52]} 4. Qc2 {[%clk 0:03:01]}  O-O {[%clk 0:02:51]} 5. a3 {[%clk 0:03:00]}  Bxc3+ {[%clk 0:02:51]} 6. Qxc3 {[%clk 0:03:01]}  d5 {[%clk 0:02:51]} 7. Nf3 {[%clk 0:02:59]}  c5 {[%clk 0:02:39]} 8. cxd5 {[%clk 0:02:50]}  cxd4 {[%clk 0:02:35]} 9. Qxd4 {[%clk 0:02:50]}  Nxd5 {[%clk 0:02:33]} 10. e4 {[%clk 0:02:42]}  Nb6 {[%clk 0:02:33]} 11. Be3 {[%clk 0:02:34]}  Nc6 {[%clk 0:02:32]} 12. Qc3 {[%clk 0:02:17]}  e5 {[%clk 0:02:25]} 13. Bb5 {[%clk 0:02:15]}  f6 {[%clk 0:02:19]} 14. O-O {[%clk 0:02:11]}  Kh8 {[%clk 0:02:06]} 15. Rfd1 {[%clk 0:02:10]}  Qe8 {[%clk 0:02:05]} 16. Nd2 {[%clk 0:01:56]}  Be6 {[%clk 0:01:38]} 17. Bxc6 {[%clk 0:01:48]}  Qxc6 {[%clk 0:01:27]} 18. Qxc6 {[%clk 0:01:48]}  bxc6 {[%clk 0:01:28]} 19. b3 {[%clk 0:01:46]}  Rfd8 {[%clk 0:01:22]} 20. Rdc1 {[%clk 0:01:44]}  Rac8 {[%clk 0:01:18]} 21. Rc3 {[%clk 0:01:42]}  c5 {[%clk 0:01:10]} 22. Rac1 {[%clk 0:01:40]}  c4 {[%clk 0:01:07]} 23. Bxb6 {[%clk 0:01:33]}  axb6 {[%clk 0:00:30]} 24. Nxc4 {[%clk 0:01:32]}  Bxc4 {[%clk 0:00:30]} 25. Rxc4 {[%clk 0:01:25]}  Rxc4 {[%clk 0:00:30]} 26. bxc4 {[%clk 0:01:26]}  Rd3 {[%clk 0:00:27]} 27. f3 {[%clk 0:01:06]}  Rxa3 {[%clk 0:00:26]} 28. Rb1 {[%clk 0:01:05]}  h6 {[%clk 0:00:18]} 29. Rxb6 {[%clk 0:01:02]}  Rc3 {[%clk 0:00:19]} 30. Rc6 {[%clk 0:00:58]}  Rc2 {[%clk 0:00:19]} 31. h4 {[%clk 0:00:56]}  Kh7 {[%clk 0:00:20]} 32. h5 {[%clk 0:00:56]}  Kg8 {[%clk 0:00:17]} 33. Rc7 {[%clk 0:00:56]}  Kf8 {[%clk 0:00:17]} 34. Kh2 {[%clk 0:00:55]}  Kg8 {[%clk 0:00:17]} 35. Kh3 {[%clk 0:00:55]}  Kh7 {[%clk 0:00:17]} 36. Rc8 {[%clk 0:00:54]}  Rc3 {[%clk 0:00:17]} 37. c5 {[%clk 0:00:51]}  Rc2 {[%clk 0:00:17]} 38. c6 {[%clk 0:00:51]}  Rc3 {[%clk 0:00:17]} 39. Kg4 {[%clk 0:00:52]}  Rc5 {[%clk 0:00:16]} 40. Kf5 {[%clk 0:00:52]}  Rc2 {[%clk 0:00:16]} 41. Ke6 {[%clk 0:00:52]}  Rxg2 {[%clk 0:00:16]} 42. Rd8 {[%clk 0:00:52]}  Rc2 {[%clk 0:00:15]} 43. Rd6 {[%clk 0:00:51]}  g6 {[%clk 0:00:15]} 44. Kd7 {[%clk 0:00:46]}  gxh5 {[%clk 0:00:14]} 45. c7 {[%clk 0:00:46]}  h4 {[%clk 0:00:15]} 46. Rc6 {[%clk 0:00:47]}  Rd2+ {[%clk 0:00:15]} 47. Ke6 {[%clk 0:00:45]}  h3 {[%clk 0:00:14]} 48. c8=Q {[%clk 0:00:45]}  h2 {[%clk 0:00:15]} 49. Rc7+ {[%clk 0:00:42]}  Kg6 {[%clk 0:00:15]} 50. Qg8+ {[%clk 0:00:43]}  Kh5 {[%clk 0:00:15]} 51. Qg4# {[%clk 0:00:44]} 1-0


[Site "https://www.chess.com"]

[Event "Titled Tuesday Blitz April 05 Late 2022"]
[White "Papp, Levente"]
[Black "Matlakov, Maxim"]
[WhiteFideId "751243"]
[BlackFideId "4168003"]
[WhiteElo "2308"]
[BlackElo "2669"]
[Result "0-1"]
[Round "02"]
[TimeControl "180+1"]
[Date "2022.04.05"]
[WhiteClock "0:00:01"]
[BlackClock "0:00:40"]

1. g3 {[%clk 0:03:00]}  d5 {[%clk 0:02:59]} 2. Nf3 {[%clk 0:03:00]}  g6 {[%clk 0:02:59]} 3. Bg2 {[%clk 0:03:00]}  Bg7 {[%clk 0:03:00]} 4. d4 {[%clk 0:03:01]}  Nf6 {[%clk 0:02:59]} 5. O-O {[%clk 0:03:01]}  O-O {[%clk 0:03:00]} 6. c4 {[%clk 0:03:02]}  dxc4 {[%clk 0:02:57]} 7. Na3 {[%clk 0:03:02]}  c3 {[%clk 0:02:58]} 8. bxc3 {[%clk 0:03:01]}  c5 {[%clk 0:02:58]} 9. Re1 {[%clk 0:02:59]}  Nc6 {[%clk 0:02:45]} 10. e3 {[%clk 0:02:30]}  Bf5 {[%clk 0:02:42]} 11. Nc4 {[%clk 0:02:27]}  Rc8 {[%clk 0:02:38]} 12. Ba3 {[%clk 0:02:22]}  Ne4 {[%clk 0:02:36]} 13. Rc1 {[%clk 0:02:17]}  Be6 {[%clk 0:02:32]} 14. Nfd2 {[%clk 0:02:12]}  Nxd2 {[%clk 0:02:31]} 15. Nxd2 {[%clk 0:02:13]}  cxd4 {[%clk 0:02:30]} 16. cxd4 {[%clk 0:02:12]}  Bxa2 {[%clk 0:02:28]} 17. Qa4 {[%clk 0:02:05]}  Be6 {[%clk 0:02:13]} 18. Ne4 {[%clk 0:01:58]}  Bd5 {[%clk 0:02:11]} 19. f3 {[%clk 0:01:42]}  a6 {[%clk 0:01:48]} 20. Nc5 {[%clk 0:01:05]}  Na7 {[%clk 0:01:38]} 21. Bb2 {[%clk 0:01:01]}  Bc6 {[%clk 0:01:29]} 22. Qb3 {[%clk 0:00:57]}  Nb5 {[%clk 0:01:29]} 23. Red1 {[%clk 0:00:52]}  e6 {[%clk 0:01:29]} 24. Qa2 {[%clk 0:00:38]}  Re8 {[%clk 0:01:29]} 25. Qa1 {[%clk 0:00:38]}  Qg5 {[%clk 0:01:11]} 26. f4 {[%clk 0:00:33]}  Qh5 {[%clk 0:01:11]} 27. Bxc6 {[%clk 0:00:33]}  Rxc6 {[%clk 0:01:11]} 28. Nxb7 {[%clk 0:00:30]}  Qf3 {[%clk 0:01:07]} 29. Rxc6 {[%clk 0:00:12]}  Qxe3+ {[%clk 0:01:07]} 30. Kg2 {[%clk 0:00:11]}  Qe4+ {[%clk 0:01:06]} 31. Kh3 {[%clk 0:00:11]}  Qxc6 {[%clk 0:01:05]} 32. Nc5 {[%clk 0:00:11]}  Qf3 {[%clk 0:00:55]} 33. Re1 {[%clk 0:00:06]}  Qh5+ {[%clk 0:00:47]} 34. Kg2 {[%clk 0:00:06]}  Qd5+ {[%clk 0:00:48]} 35. Kh3 {[%clk 0:00:05]}  Nxd4 {[%clk 0:00:48]} 36. Ne4 {[%clk 0:00:03]}  Qh5+ {[%clk 0:00:46]} 37. Kg2 {[%clk 0:00:04]}  Qf3+ {[%clk 0:00:47]} 38. Kh3 {[%clk 0:00:04]}  Ne2 {[%clk 0:00:42]} 39. Be5 {[%clk 0:00:01]}  Nxf4+ {[%clk 0:00:40]} 40. Bxf4 {[%clk 0:00:01]}  Bxa1 {[%clk 0:00:39]} 41. Rxa1 {[%clk 0:00:01]}  Qh5+ {[%clk 0:00:40]} 0-1


[Site "https://www.chess.com"]

[Event "Titled Tuesday Blitz April 05 Late 2022"]
[White "Quintiliano Pinto, Renato R."]
[Black "Ladan, Nicholas"]
[WhiteFideId "2117568"]
[BlackFideId "30918855"]
[WhiteElo "2747"]
[BlackElo "2371"]
[Result "1-0"]
[Round "02"]
[TimeControl "180+1"]
[Date "2022.04.06"]
[WhiteClock "0:00:56"]
[BlackClock "0:00:07"]

1. c4 {[%clk 0:03:00]}  Nf6 {[%clk 0:02:57]} 2. Nc3 {[%clk 0:03:00]}  c6 {[%clk 0:02:57]} 3. Nf3 {[%clk 0:02:59]}  d5 {[%clk 0:02:58]} 4. e3 {[%clk 0:03:00]}  e6 {[%clk 0:02:55]} 5. b3 {[%clk 0:02:59]}  Nbd7 {[%clk 0:02:55]} 6. Bb2 {[%clk 0:02:59]}  Bd6 {[%clk 0:02:56]} 7. Qc2 {[%clk 0:02:59]}  O-O {[%clk 0:02:54]} 8. Be2 {[%clk 0:02:56]}  e5 {[%clk 0:02:50]} 9. cxd5 {[%clk 0:02:56]}  cxd5 {[%clk 0:02:50]} 10. Nb5 {[%clk 0:02:56]}  Bb8 {[%clk 0:02:50]} 11. Ba3 {[%clk 0:02:55]}  Re8 {[%clk 0:02:47]} 12. Nd6 {[%clk 0:02:56]}  Bxd6 {[%clk 0:02:44]} 13. Bxd6 {[%clk 0:02:57]}  Re6 {[%clk 0:02:19]} 14. Ba3 {[%clk 0:02:51]}  Rc6 {[%clk 0:02:18]} 15. Qb1 {[%clk 0:02:51]}  a6 {[%clk 0:02:18]} 16. Bb2 {[%clk 0:02:49]}  Qe7 {[%clk 0:02:17]} 17. O-O {[%clk 0:02:42]}  b5 {[%clk 0:02:16]} 18. a4 {[%clk 0:02:42]}  b4 {[%clk 0:02:15]} 19. Rc1 {[%clk 0:02:40]}  Bb7 {[%clk 0:01:50]} 20. Rxc6 {[%clk 0:02:38]}  Bxc6 {[%clk 0:01:51]} 21. Qf5 {[%clk 0:02:38]}  Re8 {[%clk 0:01:33]} 22. Rc1 {[%clk 0:02:35]}  Ba8 {[%clk 0:01:30]} 23. Bxa6 {[%clk 0:02:28]}  d4 {[%clk 0:01:25]} 24. Bb5 {[%clk 0:02:23]}  Be4 {[%clk 0:01:21]} 25. Qg5 {[%clk 0:02:18]}  h6 {[%clk 0:01:18]} 26. Qh4 {[%clk 0:02:18]}  Nc5 {[%clk 0:00:57]} 27. Bxe8 {[%clk 0:02:04]}  Nd3 {[%clk 0:00:56]} 28. Rf1 {[%clk 0:01:28]}  Qxe8 {[%clk 0:00:51]} 29. Ba1 {[%clk 0:01:27]}  Bxf3 {[%clk 0:00:33]} 30. gxf3 {[%clk 0:01:27]}  Qa8 {[%clk 0:00:30]} 31. Qh3 {[%clk 0:01:17]}  Qd5 {[%clk 0:00:25]} 32. Qc8+ {[%clk 0:01:15]}  Kh7 {[%clk 0:00:25]} 33. Qf5+ {[%clk 0:01:15]}  Kg8 {[%clk 0:00:25]} 34. Qxd3 {[%clk 0:01:15]}  Qxf3 {[%clk 0:00:22]} 35. Rc1 {[%clk 0:01:06]}  e4 {[%clk 0:00:13]} 36. Qf1 {[%clk 0:01:03]}  Ng4 {[%clk 0:00:11]} 37. Bxd4 {[%clk 0:01:01]}  h5 {[%clk 0:00:09]} 38. Qg2 {[%clk 0:01:00]}  Qf5 {[%clk 0:00:08]} 39. h3 {[%clk 0:00:57]}  Nh6 {[%clk 0:00:07]} 40. Qxg7# {[%clk 0:00:56]} 1-0


[Site "https://www.chess.com"]

[Event "Titled Tuesday Blitz April 05 Late 2022"]
[White "Rasulov, Vugar"]
[Black "Chernobay, Artem"]
[WhiteFideId "13402390"]
[BlackFideId "4167406"]
[WhiteElo "2560"]
[BlackElo "2473"]
[Result "1-0"]
[Round "02"]
[TimeControl "180+1"]
[Date "2022.04.05"]
[WhiteClock "0:01:53"]
[BlackClock "0:00:34"]

1. d4 {[%clk 0:03:00]}  Nf6 {[%clk 0:02:59]} 2. c4 {[%clk 0:03:01]}  e6 {[%clk 0:03:00]} 3. Nc3 {[%clk 0:03:01]}  Bb4 {[%clk 0:02:59]} 4. Bd2 {[%clk 0:03:02]}  b6 {[%clk 0:02:57]} 5. Nf3 {[%clk 0:03:02]}  Bb7 {[%clk 0:02:57]} 6. e3 {[%clk 0:03:02]}  O-O {[%clk 0:02:56]} 7. Be2 {[%clk 0:03:03]}  d6 {[%clk 0:02:53]} 8. O-O {[%clk 0:03:03]}  Nbd7 {[%clk 0:02:53]} 9. Rc1 {[%clk 0:03:00]}  Bxc3 {[%clk 0:02:48]} 10. Bxc3 {[%clk 0:03:01]}  Ne4 {[%clk 0:02:48]} 11. b4 {[%clk 0:02:58]}  f5 {[%clk 0:02:40]} 12. Bb2 {[%clk 0:02:57]}  Rf6 {[%clk 0:02:23]} 13. d5 {[%clk 0:02:45]}  e5 {[%clk 0:02:19]} 14. Nd2 {[%clk 0:02:42]}  Nxd2 {[%clk 0:02:15]} 15. Qxd2 {[%clk 0:02:43]}  Rg6 {[%clk 0:02:15]} 16. f4 {[%clk 0:02:38]}  exf4 {[%clk 0:01:37]} 17. exf4 {[%clk 0:02:37]}  Nf6 {[%clk 0:01:32]} 18. Bf3 {[%clk 0:02:36]}  a5 {[%clk 0:01:15]} 19. a3 {[%clk 0:02:32]}  axb4 {[%clk 0:01:15]} 20. axb4 {[%clk 0:02:33]}  Qd7 {[%clk 0:01:15]} 21. Ra1 {[%clk 0:02:22]}  Re8 {[%clk 0:01:11]} 22. Ra7 {[%clk 0:02:18]}  Bc8 {[%clk 0:01:10]} 23. Qd3 {[%clk 0:02:10]}  Ne4 {[%clk 0:01:09]} 24. Bh5 {[%clk 0:02:07]}  b5 {[%clk 0:00:55]} 25. cxb5 {[%clk 0:01:58]}  Qf7 {[%clk 0:00:35]} 26. Bxg6 {[%clk 0:01:57]}  Qxg6 {[%clk 0:00:34]} 27. Rxc7 {[%clk 0:01:53]} 1-0


[Site "https://www.chess.com"]